[Event "Titled Tuesday Blitz March 08 Late 2022"]
[White "Papasimakopoulos, Alexandros"]
[Black "Song, Michael"]
[WhiteFideId "4244125"]
[BlackFideId "2613190"]
[WhiteElo "2720"]
[BlackElo "2477"]
[Result "1-0"]
[Round "03"]
[TimeControl "180+1"]
[Date "2022.03.09"]
[WhiteClock "0:01:05"]
[BlackClock "0:00:03"]

1. d4 {[%clk 0:03:00]}  f5 {[%clk 0:02:59]} 2. c4 {[%clk 0:03:00]}  Nf6 {[%clk 0:02:58]} 3. h3 {[%clk 0:03:01]}  d6 {[%clk 0:02:50]} 4. g4 {[%clk 0:03:01]}  fxg4 {[%clk 0:02:47]} 5. Nc3 {[%clk 0:03:01]}  e5 {[%clk 0:02:41]} 6. d5 {[%clk 0:02:56]}  Be7 {[%clk 0:02:29]} 7. hxg4 {[%clk 0:02:57]}  Bxg4 {[%clk 0:02:28]} 8. f3 {[%clk 0:02:57]}  Bf5 {[%clk 0:02:26]} 9. Bh3 {[%clk 0:02:57]}  Qd7 {[%clk 0:02:25]} 10. e4 {[%clk 0:02:57]}  Bxh3 {[%clk 0:02:24]} 11. Nxh3 {[%clk 0:02:58]}  Nh5 {[%clk 0:02:21]} 12. Ng5 {[%clk 0:02:46]}  Bxg5 {[%clk 0:02:13]} 13. Bxg5 {[%clk 0:02:47]}  Qf7 {[%clk 0:02:05]} 14. Kd2 {[%clk 0:02:36]}  h6 {[%clk 0:01:57]} 15. Be3 {[%clk 0:02:36]}  a6 {[%clk 0:01:51]} 16. Qg1 {[%clk 0:02:27]}  Nd7 {[%clk 0:01:40]} 17. b4 {[%clk 0:02:24]}  O-O-O {[%clk 0:01:31]} 18. c5 {[%clk 0:02:20]}  dxc5 {[%clk 0:01:21]} 19. bxc5 {[%clk 0:02:21]}  Ndf6 {[%clk 0:01:22]} 20. Rb1 {[%clk 0:02:16]}  g5 {[%clk 0:01:16]} 21. c6 {[%clk 0:02:08]}  bxc6 {[%clk 0:01:13]} 22. Qf1 {[%clk 0:02:05]}  cxd5 {[%clk 0:01:08]} 23. Qxa6+ {[%clk 0:02:01]}  Kd7 {[%clk 0:01:08]} 24. exd5 {[%clk 0:01:58]}  Nxd5 {[%clk 0:01:04]} 25. Nxd5 {[%clk 0:01:55]}  Qxd5+ {[%clk 0:01:03]} 26. Ke1 {[%clk 0:01:53]}  Qxf3 {[%clk 0:00:47]} 27. Qb5+ {[%clk 0:01:51]}  Ke6 {[%clk 0:00:46]} 28. Qc4+ {[%clk 0:01:49]}  Rd5 {[%clk 0:00:43]} 29. Qc6+ {[%clk 0:01:47]}  Kf5 {[%clk 0:00:13]} 30. Rf1 {[%clk 0:01:45]}  Qxf1+ {[%clk 0:00:14]} 31. Kxf1 {[%clk 0:01:46]}  Rhd8 {[%clk 0:00:13]} 32. Qc2+ {[%clk 0:01:37]}  Kg4 {[%clk 0:00:12]} 33. Qe2+ {[%clk 0:01:36]}  Kh4 {[%clk 0:00:10]} 34. Rb4+ {[%clk 0:01:34]}  Nf4 {[%clk 0:00:09]} 35. Bxf4 {[%clk 0:01:31]}  exf4 {[%clk 0:00:10]} 36. Qh2+ {[%clk 0:01:27]}  Kg4 {[%clk 0:00:09]} 37. Qg2+ {[%clk 0:01:20]}  Kh4 {[%clk 0:00:08]} 38. Rb2 {[%clk 0:01:18]}  Rd3 {[%clk 0:00:08]} 39. Qh2+ {[%clk 0:01:13]}  Kg4 {[%clk 0:00:07]} 40. Qxh6 {[%clk 0:01:09]}  Rd1+ {[%clk 0:00:05]} 41. Ke2 {[%clk 0:01:09]}  f3+ {[%clk 0:00:05]} 42. Ke3 {[%clk 0:01:09]}  R8d3+ {[%clk 0:00:03]} 43. Kf2 {[%clk 0:01:09]}  R3d2+ {[%clk 0:00:03]} 44. Rxd2 {[%clk 0:01:08]}  Rxd2+ {[%clk 0:00:04]} 45. Ke1 {[%clk 0:01:09]}  Re2+ {[%clk 0:00:03]} 46. Kf1 {[%clk 0:01:09]}  Kf4 {[%clk 0:00:02]} 47. Qf6+ {[%clk 0:01:08]}  Kg4 {[%clk 0:00:03]} 48. a4 {[%clk 0:01:07]}  Re4 {[%clk 0:00:02]} 49. a5 {[%clk 0:01:06]}  Rf4 {[%clk 0:00:01]} 50. Qe6+ {[%clk 0:01:05]}  Kg3 {[%clk 0:00:02]} 51. a6 {[%clk 0:01:05]}  g4 {[%clk 0:00:03]} 52. Qe5 {[%clk 0:01:05]}  f2 {[%clk 0:00:02]} 53. a7 {[%clk 0:01:05]}  Kh3 {[%clk 0:00:02]} 54. Qxf4 {[%clk 0:01:05]}  g3 {[%clk 0:00:03]} 1-0


[Site "https://www.chess.com"]

[Event "Titled Tuesday Blitz March 08 Late 2022"]
[White "Pavlidou, Ekaterini"]
[Black "Taichman, Ori"]
[WhiteFideId "4213262"]
[BlackFideId "2804069"]
[WhiteElo "2361"]
[BlackElo "2581"]
[Result "1-0"]
[Round "03"]
[TimeControl "180+1"]
[Date "2022.03.09"]
[WhiteClock "0:00:47"]
[BlackClock "0:00:52"]

1. c4 {[%clk 0:02:54]}  g5 {[%clk 0:02:59]} 2. Nc3 {[%clk 0:02:53]}  Bg7 {[%clk 0:02:59]} 3. d4 {[%clk 0:02:54]}  c5 {[%clk 0:02:59]} 4. d5 {[%clk 0:02:53]}  Bxc3+ {[%clk 0:02:59]} 5. bxc3 {[%clk 0:02:52]}  Qa5 {[%clk 0:03:00]} 6. Qc2 {[%clk 0:02:52]}  h6 {[%clk 0:02:51]} 7. h4 {[%clk 0:02:51]}  g4 {[%clk 0:02:52]} 8. h5 {[%clk 0:02:50]}  d6 {[%clk 0:02:52]} 9. e4 {[%clk 0:02:50]}  Nf6 {[%clk 0:02:52]} 10. f3 {[%clk 0:02:48]}  Nbd7 {[%clk 0:02:51]} 11. f4 {[%clk 0:02:46]}  Nb6 {[%clk 0:02:46]} 12. Bd3 {[%clk 0:02:43]}  Qa4 {[%clk 0:02:46]} 13. Qe2 {[%clk 0:02:42]}  e5 {[%clk 0:02:35]} 14. fxe5 {[%clk 0:02:26]}  dxe5 {[%clk 0:02:03]} 15. Be3 {[%clk 0:02:26]}  Qa5 {[%clk 0:01:58]} 16. Qd2 {[%clk 0:02:18]}  Na4 {[%clk 0:01:58]} 17. Ne2 {[%clk 0:02:16]}  b6 {[%clk 0:01:56]} 18. Rc1 {[%clk 0:02:13]}  Ke7 {[%clk 0:01:55]} 19. Bxh6 {[%clk 0:02:10]}  Nb2 {[%clk 0:01:52]} 20. Bg7 {[%clk 0:02:05]}  Nxd3+ {[%clk 0:01:52]} 21. Qxd3 {[%clk 0:02:04]}  Rh7 {[%clk 0:01:53]} 22. h6 {[%clk 0:02:00]}  Ne8 {[%clk 0:01:42]} 23. Bxe5 {[%clk 0:01:56]}  Ba6 {[%clk 0:01:42]} 24. d6+ {[%clk 0:01:54]}  Kd7 {[%clk 0:01:42]} 25. Qg3 {[%clk 0:01:47]}  Bxc4 {[%clk 0:01:43]} 26. Qxg4+ {[%clk 0:01:42]}  Be6 {[%clk 0:01:42]} 27. Qg5 {[%clk 0:01:40]}  Qxa2 {[%clk 0:01:34]} 28. Qe7+ {[%clk 0:01:36]}  Kc6 {[%clk 0:01:33]} 29. Nd4+ {[%clk 0:01:20]}  cxd4 {[%clk 0:01:32]} 30. cxd4+ {[%clk 0:01:19]}  Bc4 {[%clk 0:01:25]} 31. d5+ {[%clk 0:01:07]}  Kb5 {[%clk 0:01:24]} 32. Qd7+ {[%clk 0:01:06]}  Ka6 {[%clk 0:01:18]} 33. Ra1 {[%clk 0:01:05]}  Qxa1+ {[%clk 0:01:03]} 34. Bxa1 {[%clk 0:01:04]}  Bb5 {[%clk 0:01:02]} 35. Qf5 {[%clk 0:01:01]}  Nxd6 {[%clk 0:00:58]} 36. Qxh7 {[%clk 0:01:00]}  Re8 {[%clk 0:00:59]} 37. e5 {[%clk 0:00:56]}  f6 {[%clk 0:00:58]} 38. e6 {[%clk 0:00:51]}  Bc4 {[%clk 0:00:57]} 39. Qd7 {[%clk 0:00:49]}  Bxd5 {[%clk 0:00:53]} 40. Qxe8 {[%clk 0:00:46]}  Nxe8 {[%clk 0:00:52]} 41. h7 {[%clk 0:00:47]} 1-0


[Site "https://www.chess.com"]

[Event "Titled Tuesday Blitz March 08 Late 2022"]
[White "Petersson, Kjell"]
[Black "Todorovic, Bojan"]
[WhiteFideId "1705148"]
[BlackFideId "917087"]
[WhiteElo "2009"]
[BlackElo "2266"]
[Result "0-1"]
[Round "03"]
[TimeControl "180+1"]
[Date "2022.03.09"]
[WhiteClock "0:00:01"]
[BlackClock "0:00:07"]

1. d4 {[%clk 0:03:00]}  Nf6 {[%clk 0:02:57]} 2. Bf4 {[%clk 0:03:01]}  g6 {[%clk 0:02:54]} 3. Nc3 {[%clk 0:03:01]}  Bg7 {[%clk 0:02:49]} 4. e4 {[%clk 0:03:01]}  d6 {[%clk 0:02:46]} 5. Qd2 {[%clk 0:03:01]}  Nc6 {[%clk 0:02:37]} 6. O-O-O {[%clk 0:02:59]}  O-O {[%clk 0:02:35]} 7. Nf3 {[%clk 0:02:56]}  Bg4 {[%clk 0:02:33]} 8. Qe3 {[%clk 0:02:56]}  Qe8 {[%clk 0:01:57]} 9. Bh6 {[%clk 0:02:47]}  Bxf3 {[%clk 0:01:52]} 10. gxf3 {[%clk 0:02:45]}  e5 {[%clk 0:01:50]} 11. dxe5 {[%clk 0:02:43]}  Nxe5 {[%clk 0:01:50]} 12. h4 {[%clk 0:02:18]}  Nh5 {[%clk 0:01:47]} 13. Be2 {[%clk 0:02:05]}  Qe6 {[%clk 0:01:38]} 14. Bxg7 {[%clk 0:01:35]}  Kxg7 {[%clk 0:01:32]} 15. f4 {[%clk 0:01:32]}  Nc6 {[%clk 0:00:51]} 16. Bxh5 {[%clk 0:01:22]}  gxh5 {[%clk 0:00:51]} 17. Rd5 {[%clk 0:01:02]}  Kh8 {[%clk 0:00:50]} 18. Rxh5 {[%clk 0:01:00]}  Rg8 {[%clk 0:00:50]} 19. f5 {[%clk 0:00:54]}  Qe5 {[%clk 0:00:41]} 20. Rg5 {[%clk 0:00:46]}  f6 {[%clk 0:00:39]} 21. Rgg1 {[%clk 0:00:38]}  Qd4 {[%clk 0:00:29]} 22. Qh6 {[%clk 0:00:35]}  Ne7 {[%clk 0:00:18]} 23. Rd1 {[%clk 0:00:31]}  Qe5 {[%clk 0:00:17]} 24. Rd5 {[%clk 0:00:30]}  Nxd5 {[%clk 0:00:16]} 25. Nxd5 {[%clk 0:00:29]}  Qxe4 {[%clk 0:00:14]} 26. Rd1 {[%clk 0:00:27]}  Qxf5 {[%clk 0:00:10]} 27. Nxf6 {[%clk 0:00:26]}  Rg7 {[%clk 0:00:10]} 28. Nh5 {[%clk 0:00:25]}  Rf7 {[%clk 0:00:09]} 29. Ng3 {[%clk 0:00:17]}  Qg6 {[%clk 0:00:09]} 30. Qe3 {[%clk 0:00:16]}  Raf8 {[%clk 0:00:09]} 31. Qd4+ {[%clk 0:00:15]}  Kg8 {[%clk 0:00:08]} 32. h5 {[%clk 0:00:14]}  Qf6 {[%clk 0:00:08]} 33. Qg4+ {[%clk 0:00:14]}  Kh8 {[%clk 0:00:08]} 34. Rf1 {[%clk 0:00:10]}  Qf4+ {[%clk 0:00:08]} 35. Qxf4 {[%clk 0:00:10]}  Rxf4 {[%clk 0:00:08]} 36. Nh1 {[%clk 0:00:10]}  Rf3 {[%clk 0:00:08]} 37. Kd2 {[%clk 0:00:10]}  Kg7 {[%clk 0:00:08]} 38. Ke2 {[%clk 0:00:10]}  R3f5 {[%clk 0:00:07]} 39. Ng3 {[%clk 0:00:10]}  Re5+ {[%clk 0:00:07]} 40. Kd2 {[%clk 0:00:10]}  Rf4 {[%clk 0:00:07]} 41. Kd3 {[%clk 0:00:09]}  Kf6 {[%clk 0:00:07]} 42. c3 {[%clk 0:00:08]}  h6 {[%clk 0:00:07]} 43. Kd2 {[%clk 0:00:04]}  Rg5 {[%clk 0:00:06]} 44. Ke2 {[%clk 0:00:02]}  Rxg3 {[%clk 0:00:05]} 45. fxg3 {[%clk 0:00:02]}  Rxf1 {[%clk 0:00:05]} 46. Kxf1 {[%clk 0:00:02]}  Kg5 {[%clk 0:00:06]} 47. Kf2 {[%clk 0:00:03]}  Kxh5 {[%clk 0:00:06]} 48. Kf3 {[%clk 0:00:03]}  Kg5 {[%clk 0:00:06]} 49. Ke3 {[%clk 0:00:02]}  h5 {[%clk 0:00:07]} 50. Kf3 {[%clk 0:00:02]}  d5 {[%clk 0:00:07]} 51. b3 {[%clk 0:00:02]}  c5 {[%clk 0:00:07]} 52. a3 {[%clk 0:00:02]}  d4 {[%clk 0:00:07]} 53. cxd4 {[%clk 0:00:01]}  cxd4 {[%clk 0:00:07]} 0-1


[Site "https://www.chess.com"]

[Event "Titled Tuesday Blitz March 08 Late 2022"]
[White "Petrovic, Aleksa"]
[Black "Kamsky, Gata"]
[WhiteFideId "967629"]
[BlackFideId "2000024"]
[WhiteElo "2499"]
[BlackElo "2815"]
[Result "0-1"]
[Round "03"]
[TimeControl "180+1"]
[Date "2022.03.09"]
[WhiteClock "0:00:02"]
[BlackClock "0:01:24"]

1. d4 {[%clk 0:03:00]}  Nf6 {[%clk 0:02:57]} 2. c4 {[%clk 0:03:00]}  g6 {[%clk 0:02:56]} 3. Nc3 {[%clk 0:03:00]}  Bg7 {[%clk 0:02:55]} 4. e4 {[%clk 0:03:00]}  d6 {[%clk 0:02:55]} 5. Nf3 {[%clk 0:03:00]}  O-O {[%clk 0:02:54]} 6. Be2 {[%clk 0:03:00]}  e5 {[%clk 0:02:54]} 7. dxe5 {[%clk 0:03:01]}  dxe5 {[%clk 0:02:54]} 8. Qxd8 {[%clk 0:03:02]}  Rxd8 {[%clk 0:02:54]} 9. Bg5 {[%clk 0:03:02]}  c6 {[%clk 0:02:46]} 10. Nxe5 {[%clk 0:03:01]}  Re8 {[%clk 0:02:45]} 11. O-O-O {[%clk 0:03:01]}  Na6 {[%clk 0:02:42]} 12. Rd6 {[%clk 0:02:31]}  Nxe4 {[%clk 0:02:37]} 13. Nxe4 {[%clk 0:02:30]}  Bxe5 {[%clk 0:02:37]} 14. Nf6+ {[%clk 0:02:29]}  Bxf6 {[%clk 0:02:36]} 15. Bxf6 {[%clk 0:02:30]}  Nc5 {[%clk 0:02:27]} 16. Bf3 {[%clk 0:02:21]}  Bf5 {[%clk 0:02:24]} 17. Rhd1 {[%clk 0:02:17]}  h5 {[%clk 0:02:16]} 18. b4 {[%clk 0:01:47]}  Ne4 {[%clk 0:02:12]} 19. Bxe4 {[%clk 0:01:46]}  Rxe4 {[%clk 0:02:10]} 20. Rd8+ {[%clk 0:01:42]}  Re8 {[%clk 0:02:09]} 21. Rxa8 {[%clk 0:01:42]}  Rxa8 {[%clk 0:02:08]} 22. Rd8+ {[%clk 0:01:42]}  Rxd8 {[%clk 0:02:08]} 23. Bxd8 {[%clk 0:01:43]}  Be6 {[%clk 0:02:08]} 24. c5 {[%clk 0:01:35]}  Bxa2 {[%clk 0:02:07]} 25. h4 {[%clk 0:01:30]}  Kf8 {[%clk 0:02:06]} 26. Kd2 {[%clk 0:01:28]}  Ke8 {[%clk 0:02:06]} 27. Bc7 {[%clk 0:01:28]}  Kd7 {[%clk 0:02:06]} 28. Bb8 {[%clk 0:01:29]}  a6 {[%clk 0:02:06]} 29. Ke3 {[%clk 0:01:28]}  Ke6 {[%clk 0:02:06]} 30. Kd4 {[%clk 0:01:19]}  Kf5 {[%clk 0:02:04]} 31. Bd6 {[%clk 0:01:03]}  Kg4 {[%clk 0:02:01]} 32. Be7 {[%clk 0:01:00]}  Bd5 {[%clk 0:01:58]} 33. g3 {[%clk 0:00:43]}  Kf3 {[%clk 0:01:57]} 34. Bd6 {[%clk 0:00:35]}  Kxf2 {[%clk 0:01:56]} 35. Bf4 {[%clk 0:00:35]}  Kf3 {[%clk 0:01:52]} 36. Ke5 {[%clk 0:00:27]}  Ke2 {[%clk 0:01:51]} 37. Kd4 {[%clk 0:00:26]}  f6 {[%clk 0:01:50]} 38. Bd6 {[%clk 0:00:25]}  Kf3 {[%clk 0:01:50]} 39. Be7 {[%clk 0:00:24]}  f5 {[%clk 0:01:40]} 40. Bd6 {[%clk 0:00:24]}  Kg4 {[%clk 0:01:38]} 41. Bf4 {[%clk 0:00:24]}  g5 {[%clk 0:01:37]} 42. Bxg5 {[%clk 0:00:14]}  Kxg3 {[%clk 0:01:36]} 43. Ke3 {[%clk 0:00:13]}  f4+ {[%clk 0:01:35]} 44. Bxf4+ {[%clk 0:00:12]}  Kxh4 {[%clk 0:01:35]} 45. Kf2 {[%clk 0:00:10]}  Kg4 {[%clk 0:01:35]} 46. Bc7 {[%clk 0:00:10]}  h4 {[%clk 0:01:33]} 47. Kg1 {[%clk 0:00:10]}  Kf3 {[%clk 0:01:32]} 48. Kh2 {[%clk 0:00:10]}  Be6 {[%clk 0:01:31]} 49. Bd8 {[%clk 0:00:09]}  h3 {[%clk 0:01:30]} 50. Bb6 {[%clk 0:00:09]}  Ke4 {[%clk 0:01:30]} 51. Ba5 {[%clk 0:00:09]}  Kd5 {[%clk 0:01:30]} 52. Kg3 {[%clk 0:00:09]}  Kc4 {[%clk 0:01:30]} 53. Kh2 {[%clk 0:00:08]}  Kb5 {[%clk 0:01:31]} 54. Kg3 {[%clk 0:00:08]}  Bc8 {[%clk 0:01:30]} 55. Kh2 {[%clk 0:00:07]}  b6 {[%clk 0:01:28]} 56. cxb6 {[%clk 0:00:03]}  c5 {[%clk 0:01:28]} 57. bxc5 {[%clk 0:00:02]}  Kxa5 {[%clk 0:01:24]} 0-1


[Site "https://www.chess.com"]

[Event "Titled Tuesday Blitz March 08 Late 2022"]
[White "Praggnanandhaa R"]
[Black "Korchmar, Vasiliy"]
[WhiteFideId "25059530"]
[BlackFideId "24131750"]
[WhiteElo "2599"]
[BlackElo "2370"]
[Result "1-0"]
[Round "03"]
[TimeControl "180+1"]
[Date "2022.03.08"]
[WhiteClock "0:00:23"]
[BlackClock "0:00:01"]

1. Nc3 {[%clk 0:03:00]}  e5 {[%clk 0:02:58]} 2. d3 {[%clk 0:02:57]}  d5 {[%clk 0:02:56]} 3. Nf3 {[%clk 0:02:57]}  Nc6 {[%clk 0:02:56]} 4. g3 {[%clk 0:02:57]}  g6 {[%clk 0:02:55]} 5. Bg2 {[%clk 0:02:58]}  Bg7 {[%clk 0:02:56]} 6. O-O {[%clk 0:02:57]}  Nge7 {[%clk 0:02:56]} 7. e4 {[%clk 0:02:57]}  d4 {[%clk 0:02:53]} 8. Ne2 {[%clk 0:02:57]}  O-O {[%clk 0:02:53]} 9. Nh4 {[%clk 0:02:54]}  Be6 {[%clk 0:02:49]} 10. f4 {[%clk 0:02:54]}  f5 {[%clk 0:02:44]} 11. fxe5 {[%clk 0:02:51]}  Nxe5 {[%clk 0:02:36]} 12. Nf4 {[%clk 0:02:50]}  Bd7 {[%clk 0:02:32]} 13. exf5 {[%clk 0:02:48]}  Nxf5 {[%clk 0:02:18]} 14. Nxf5 {[%clk 0:02:48]}  Bxf5 {[%clk 0:02:19]} 15. Bxb7 {[%clk 0:02:47]}  Rb8 {[%clk 0:02:15]} 16. Bg2 {[%clk 0:02:41]}  Ng4 {[%clk 0:02:02]} 17. b3 {[%clk 0:02:24]}  Ne3 {[%clk 0:02:00]} 18. Bxe3 {[%clk 0:02:24]}  dxe3 {[%clk 0:02:01]} 19. Rb1 {[%clk 0:02:24]}  Qd7 {[%clk 0:01:45]} 20. Qe2 {[%clk 0:02:22]}  Rbe8 {[%clk 0:01:26]} 21. Bf3 {[%clk 0:02:08]}  Bc3 {[%clk 0:01:15]} 22. Ng2 {[%clk 0:02:04]}  Bh3 {[%clk 0:01:06]} 23. Kh1 {[%clk 0:02:00]}  Rf6 {[%clk 0:01:02]} 24. Be4 {[%clk 0:02:00]}  Rxf1+ {[%clk 0:00:49]} 25. Rxf1 {[%clk 0:01:58]}  Bd2 {[%clk 0:00:41]} 26. Qf3 {[%clk 0:01:47]}  Bg4 {[%clk 0:00:30]} 27. Qf6 {[%clk 0:01:06]}  e2 {[%clk 0:00:29]} 28. Rg1 {[%clk 0:01:06]}  Rxe4 {[%clk 0:00:09]} 29. dxe4 {[%clk 0:01:03]}  Qd6 {[%clk 0:00:02]} 30. Qxd6 {[%clk 0:00:31]}  cxd6 {[%clk 0:00:02]} 31. Ne1 {[%clk 0:00:32]}  Bh3 {[%clk 0:00:01]} 32. Nf3 {[%clk 0:00:31]}  Bc3 {[%clk 0:00:01]} 33. Re1 {[%clk 0:00:23]} 1-0


[Site "https://www.chess.com"]

[Event "Titled Tuesday Blitz March 08 Late 2022"]
[White "Rastbod, Ali"]
[Black "Ronka, Erik"]
[WhiteFideId "12567477"]
[BlackFideId "505080"]
[WhiteElo "2635"]
[BlackElo "2449"]
[Result "0-1"]
[Round "03"]
[TimeControl "180+1"]
[Date "2022.03.09"]
[WhiteClock "0:00:06"]
[BlackClock "0:00:19"]

1. c4 {[%clk 0:02:46]}  c5 {[%clk 0:02:57]} 2. Nf3 {[%clk 0:02:45]}  Nc6 {[%clk 0:02:58]} 3. b3 {[%clk 0:02:45]}  e5 {[%clk 0:02:57]} 4. Bb2 {[%clk 0:02:45]}  d6 {[%clk 0:02:57]} 5. g3 {[%clk 0:02:45]}  g6 {[%clk 0:02:56]} 6. Bg2 {[%clk 0:02:45]}  Bg7 {[%clk 0:02:56]} 7. O-O {[%clk 0:02:46]}  Nge7 {[%clk 0:02:57]} 8. d3 {[%clk 0:02:46]}  O-O {[%clk 0:02:58]} 9. Nc3 {[%clk 0:02:46]}  h6 {[%clk 0:02:55]} 10. Nd2 {[%clk 0:02:45]}  Be6 {[%clk 0:02:54]} 11. Rc1 {[%clk 0:02:45]}  Rb8 {[%clk 0:02:41]} 12. a3 {[%clk 0:02:41]}  a6 {[%clk 0:02:35]} 13. Nd5 {[%clk 0:02:40]}  b5 {[%clk 0:02:32]} 14. Bc3 {[%clk 0:02:38]}  Qd7 {[%clk 0:02:20]} 15. e3 {[%clk 0:02:32]}  Bh3 {[%clk 0:02:18]} 16. Bxh3 {[%clk 0:02:21]}  Qxh3 {[%clk 0:02:19]} 17. Qf3 {[%clk 0:02:22]}  Nxd5 {[%clk 0:02:08]} 18. Qxd5 {[%clk 0:02:17]}  Qd7 {[%clk 0:02:06]} 19. f4 {[%clk 0:01:56]}  b4 {[%clk 0:01:55]} 20. axb4 {[%clk 0:01:44]}  Nxb4 {[%clk 0:01:56]} 21. Bxb4 {[%clk 0:01:44]}  Rxb4 {[%clk 0:01:57]} 22. fxe5 {[%clk 0:01:31]}  Bxe5 {[%clk 0:01:58]} 23. d4 {[%clk 0:01:29]}  cxd4 {[%clk 0:01:47]} 24. exd4 {[%clk 0:01:30]}  Bg7 {[%clk 0:01:47]} 25. Rc3 {[%clk 0:01:19]}  Qe6 {[%clk 0:01:22]} 26. Qxe6 {[%clk 0:01:02]}  fxe6 {[%clk 0:01:23]} 27. Rxf8+ {[%clk 0:01:01]}  Kxf8 {[%clk 0:01:24]} 28. Nf3 {[%clk 0:00:49]}  Ke7 {[%clk 0:01:17]} 29. Rd3 {[%clk 0:00:42]}  a5 {[%clk 0:01:14]} 30. Nd2 {[%clk 0:00:38]}  d5 {[%clk 0:01:02]} 31. Kf2 {[%clk 0:00:33]}  a4 {[%clk 0:01:02]} 32. bxa4 {[%clk 0:00:32]}  dxc4 {[%clk 0:01:01]} 33. Ra3 {[%clk 0:00:28]}  Bxd4+ {[%clk 0:01:01]} 34. Ke2 {[%clk 0:00:28]}  Bb2 {[%clk 0:00:50]} 35. Ra2 {[%clk 0:00:10]}  c3 {[%clk 0:00:50]} 36. a5 {[%clk 0:00:10]}  c2 {[%clk 0:00:43]} 37. a6 {[%clk 0:00:11]}  c1=Q {[%clk 0:00:42]} 38. a7 {[%clk 0:00:11]}  Rd4 {[%clk 0:00:28]} 39. a8=Q {[%clk 0:00:09]}  Qxd2+ {[%clk 0:00:26]} 40. Kf3 {[%clk 0:00:09]}  Rd3+ {[%clk 0:00:21]} 41. Kg4 {[%clk 0:00:09]}  Qg5+ {[%clk 0:00:18]} 42. Kh3 {[%clk 0:00:09]}  Qf5+ {[%clk 0:00:19]} 43. Kg2 {[%clk 0:00:07]}  Rd2+ {[%clk 0:00:19]} 44. Kg1 {[%clk 0:00:06]}  Qf2+ {[%clk 0:00:19]} 0-1


[Site "https://www.chess.com"]

[Event "Titled Tuesday Blitz March 08 Late 2022"]
[White "Riehle, Marco"]
[Black "Pichot, Alan"]
[WhiteFideId "12904392"]
[BlackFideId "110973"]
[WhiteElo "2462"]
[BlackElo "2579"]
[Result "1-0"]
[Round "03"]
[TimeControl "180+1"]
[Date "2022.03.08"]
[WhiteClock "0:00:43"]
[BlackClock "0:00:04"]

1. e4 {[%clk 0:02:53]}  c5 {[%clk 0:02:56]} 2. a3 {[%clk 0:02:51]}  g6 {[%clk 0:02:51]} 3. h4 {[%clk 0:02:50]}  d5 {[%clk 0:02:42]} 4. exd5 {[%clk 0:02:50]}  Qxd5 {[%clk 0:02:42]} 5. Nc3 {[%clk 0:02:49]}  Qd8 {[%clk 0:02:41]} 6. h5 {[%clk 0:02:46]}  Bg7 {[%clk 0:02:40]} 7. Bc4 {[%clk 0:02:46]}  Nc6 {[%clk 0:02:36]} 8. Nf3 {[%clk 0:02:38]}  Nh6 {[%clk 0:02:22]} 9. d3 {[%clk 0:02:34]}  Bg4 {[%clk 0:01:33]} 10. Be3 {[%clk 0:02:15]}  Nd4 {[%clk 0:01:21]} 11. Bxd4 {[%clk 0:02:13]}  cxd4 {[%clk 0:01:18]} 12. Ne4 {[%clk 0:02:01]}  O-O {[%clk 0:00:58]} 13. Qd2 {[%clk 0:01:57]}  Bxf3 {[%clk 0:00:53]} 14. gxf3 {[%clk 0:01:54]}  Nf5 {[%clk 0:00:53]} 15. O-O-O {[%clk 0:01:48]}  e6 {[%clk 0:00:52]} 16. Kb1 {[%clk 0:01:41]}  Rb8 {[%clk 0:00:46]} 17. Rdg1 {[%clk 0:01:38]}  b5 {[%clk 0:00:46]} 18. Bb3 {[%clk 0:01:38]}  Qe7 {[%clk 0:00:41]} 19. Ng5 {[%clk 0:01:36]}  Bh6 {[%clk 0:00:29]} 20. hxg6 {[%clk 0:01:33]}  hxg6 {[%clk 0:00:13]} 21. Rxh6 {[%clk 0:01:28]}  Nxh6 {[%clk 0:00:14]} 22. Nxe6 {[%clk 0:01:27]}  Qh4 {[%clk 0:00:13]} 23. Nxf8 {[%clk 0:01:14]}  Kxf8 {[%clk 0:00:13]} 24. Qa5 {[%clk 0:00:57]}  Kg7 {[%clk 0:00:07]} 25. Qxa7 {[%clk 0:00:54]}  Re8 {[%clk 0:00:08]} 26. Ka2 {[%clk 0:00:52]}  Qxf2 {[%clk 0:00:08]} 27. Rh1 {[%clk 0:00:51]}  Rf8 {[%clk 0:00:04]} 28. Qc5 {[%clk 0:00:45]}  Nf5 {[%clk 0:00:04]} 29. Qe5+ {[%clk 0:00:43]} 1-0


[Site "https://www.chess.com"]